bitfinex-derivatives/quotes_BTCF0:USTF0_20250528
["timestamp","ask_amount","ask_price","bid_price","bid_amount"]
[1748455541243,1.36265787,107780.0,107770.0,0.18716884]
[1748455541646,1.26987387,107780.0,107770.0,0.21916884]
[1748455542037,1.26987387,107780.0,107770.0,0.03365134]
[1748455542440,1.26987387,107780.0,107770.0,0.21916884]
[1748455543550,1.26987387,107780.0,107770.0,0.03365134]
[1748455543743,1.26987387,107780.0,107770.0,0.21916884]
[1748455543945,1.26987387,107780.0,107770.0,0.00165134]
[1748455544754,1.38537763,107780.0,107770.0,0.00165134]
[1748455545237,1.26987387,107780.0,107770.0,0.00165134]
[1748455545441,1.38537763,107780.0,107770.0,0.00165134]
[1748455545856,1.26987387,107780.0,107770.0,0.00165134]
[1748455546052,1.26987387,107780.0,107770.0,0.03325134]
[1748455547445,1.26987387,107780.0,107770.0,0.03313134]
[1748455547644,1.38537763,107780.0,107770.0,0.00165134]
[1748455547855,1.39876745,107780.0,107770.0,0.00153134]
[1748455548150,1.42766548,107780.0,107770.0,0.00165134]
[1748455548347,0.1855175,107770.0,107760.0,0.00278]
[1748455548553,1.65214244,107770.0,107760.0,0.00278]
[1748455549047,1.65214244,107770.0,107760.0,0.0029]
[1748455549440,1.65214244,107770.0,107760.0,0.0049]
[1748455549637,1.74493844,107770.0,107760.0,0.0049]
[1748455550250,1.74493844,107770.0,107760.0,0.0039]
[1748455550444,1.75093844,107770.0,107760.0,0.00278]
[1748455550751,1.75093844,107770.0,107760.0,0.0029]
[1748455550951,1.63554028,107770.0,107760.0,0.00278]
[1748455551153,1.77994207,107770.0,107760.0,0.0029]
[1748455551456,0.1855347,107760.0,107750.0,0.00013952]
[1748455551750,0.1855519,107750.0,107740.0,0.06356774]
[1748455552052,1.37749989,107750.0,107740.0,0.06356774]
[1748455552454,1.37749989,107750.0,107740.0,0.0321]
[1748455552868,1.31982605,107750.0,107740.0,0.03222]
[1748455553046,1.41982605,107750.0,107740.0,0.03222]
[1748455553548,1.42082605,107750.0,107740.0,0.03222]
[1748455554344,1.53617362,107750.0,107740.0,0.03222]
[1748455554540,1.44966286,107750.0,107740.0,0.03222]
[1748455554949,1.44966286,107750.0,107740.0,0.00012]
[1748455555455,1.44966286,107750.0,107730.0,0.06791188]
[1748455555456,0.1855691,107740.0,107730.0,0.06791188]
[1748455555750,1.34540841,107740.0,107730.0,0.06651952]
[1748455555945,1.5376718,107740.0,107730.0,0.06651952]
[1748455556149,1.15314502,107740.0,107730.0,0.25210592]
[1748455556342,1.05540841,107740.0,107730.0,0.28210592]
[1748455556743,1.05540841,107740.0,107730.0,0.28410592]
[1748455556953,1.05540841,107740.0,107730.0,0.09851952]
[1748455557342,1.26896286,107740.0,107730.0,0.03541952]
[1748455557653,1.29777804,107740.0,107730.0,0.03541952]
[1748455557849,1.29777804,107740.0,107730.0,0.03553952]
[1748455559554,1.35534815,107740.0,107730.0,0.03553952]
[1748455560058,1.35534815,107740.0,107730.0,0.00503952]
[1748455560359,1.35534815,107740.0,107730.0,0.22220582]
[1748455560565,0.66184815,107740.0,107730.0,0.30502582]
[1748455560870,0.56100168,107740.0,107730.0,0.66582582]
[1748455561062,0.37543258,107740.0,107730.0,0.64582582]
[1748455561360,0.56100178,107740.0,107730.0,2.37582582]
[1748455561748,0.32543258,107740.0,107730.0,2.37582582]
[1748455561949,0.46783259,107740.0,107730.0,2.37582582]
[1748455563544,0.77100621,107740.0,107730.0,2.37582582]
[1748455563748,0.72783259,107740.0,107730.0,2.37582582]
[1748455563963,0.77100621,107740.0,107730.0,2.01502582]
[1748455564262,0.85280621,107740.0,107730.0,2.37582582]
[1748455564456,0.85280621,107740.0,107730.0,2.37570582]
[1748455564652,0.85280621,107740.0,107730.0,2.37582582]
[1748455565350,1.17043259,107740.0,107730.0,1.60943952]
[1748455565544,0.9325027,107740.0,107730.0,1.60943952]
[1748455565751,0.97570513,107740.0,107730.0,1.60943952]
[1748455566051,0.97570513,107740.0,107730.0,0.10943952]
[1748455566557,0.97570513,107740.0,107730.0,1.60943952]
[1748455567059,0.97570513,107740.0,107730.0,0.10943952]
[1748455567253,0.97570513,107740.0,107730.0,0.29502582]
[1748455568755,0.97570513,107740.0,107730.0,0.28502582]
[1748455569067,0.87860513,107740.0,107730.0,0.48502582]
[1748455569366,0.59860513,107740.0,107730.0,0.48502582]
[1748455572054,0.59860513,107740.0,107730.0,0.48502592]
[1748455572254,0.5867027,107740.0,107730.0,0.48502592]
[1748455572564,0.5867027,107740.0,107730.0,0.48490592]
[1748455572769,0.67314825,107740.0,107730.0,0.48502592]
[1748455572956,0.67314825,107740.0,107730.0,0.29943952]
[1748455573153,0.98564825,107740.0,107730.0,0.29943952]
[1748455573360,0.98564825,107740.0,107730.0,0.29931952]
[1748455573559,0.98564825,107740.0,107730.0,0.29943952]
[1748455574066,0.98564825,107740.0,107730.0,0.48502582]
[1748455574259,0.98564825,107740.0,107730.0,0.29943952]
[1748455575158,1.34644825,107740.0,107730.0,0.10943952]
[1748455575358,1.28887814,107740.0,107730.0,0.10931952]
[1748455575558,1.28887814,107740.0,107730.0,0.10943952]
[1748455576865,0.92807814,107740.0,107730.0,0.10943952]
[1748455577264,1.48114153,107740.0,107730.0,0.04673952]
[1748455577455,1.51004355,107740.0,107730.0,0.03661952]
[1748455577768,1.51004355,107740.0,107730.0,0.03673952]
[1748455577956,1.51004355,107740.0,107730.0,0.03661952]
[1748455578158,1.51004355,107740.0,107730.0,0.03673952]
[1748455578367,1.46218195,107740.0,107730.0,0.03673952]
[1748455579268,1.34683438,107740.0,107730.0,0.03673952]
[1748455579865,1.34683438,107740.0,107730.0,0.03395952]
[1748455580168,1.34683438,107740.0,107720.0,0.0308]
[1748455580169,0.1855863,107730.0,107720.0,0.0308]
[1748455580366,1.60036703,107730.0,107720.0,0.0308]
[1748455580557,1.60036703,107730.0,107720.0,0.03092]
[1748455581060,1.48471308,107730.0,107720.0,0.00012]
[1748455581364,1.60336703,107730.0,107720.0,0.00012]
[1748455581565,1.48771308,107730.0,107720.0,0.00012]
[1748455582063,0.1856036,107720.0,107710.0,0.03541952]
[1748455582269,1.27721584,107720.0,107710.0,0.03541952]
[1748455582563,1.27721584,107720.0,107710.0,0.03553952]
[1748455583463,1.38121584,107720.0,107710.0,0.00303952]
[1748455583658,0.2356207,107710.0,107700.0,0.0613]
[1748455583856,0.2356379,107700.0,107690.0,0.032]
[1748455584059,0.89682846,107700.0,107690.0,1.61619119]
[1748455584269,0.95458473,107700.0,107690.0,1.61619119]
[1748455584660,0.95495651,107700.0,107690.0,1.80184629]
[1748455584858,0.95495651,107700.0,107690.0,1.80186542]
[1748455585056,0.95495651,107700.0,107690.0,1.7889551]
[1748455585263,1.06053719,107700.0,107690.0,1.6033]
[1748455585464,1.06053719,107700.0,107690.0,1.60342]
[1748455585663,1.06053719,107700.0,107690.0,1.7890751]
[1748455586262,0.8682738,107700.0,107690.0,1.7890751]
[1748455586465,0.34601041,107700.0,107690.0,2.1398751]
[1748455586666,0.5972738,107700.0,107690.0,2.3598751]
[1748455586967,0.61120095,107700.0,107690.0,2.3598751]
[1748455587362,0.65447333,107700.0,107690.0,2.3598751]
[1748455587669,0.45671706,107700.0,107690.0,2.3598751]
[1748455589673,0.42641706,107700.0,107690.0,2.3598751]
[1748455590486,0.42639513,107700.0,107690.0,2.3598751]
[1748455590658,0.45829513,107700.0,107690.0,2.3598751]
[1748455591277,0.56829513,107700.0,107690.0,2.3598751]
[1748455592364,1.02055852,107700.0,107690.0,1.60342]
[1748455592572,1.02055852,107700.0,107690.0,0.00012]
[1748455592573,1.15911479,107700.0,107690.0,0.00012]
[1748455592773,0.1856551,107690.0,107680.0,0.00291952]
[1748455592973,1.26221849,107690.0,107680.0,0.00291952]
[1748455593274,1.26221849,107690.0,107680.0,0.01562486]
[1748455593471,1.26221849,107690.0,107680.0,0.01574452]
[1748455593672,1.26221849,107690.0,107650.0,0.41988326]
[1748455593673,0.046421,107680.0,107650.0,0.41988326]
[1748455593871,0.50661781,107670.0,107660.0,0.2163069]
[1748455594181,0.50661781,107670.0,107660.0,1.5806]
[1748455594182,0.89805968,107670.0,107660.0,1.5806]
[1748455594381,0.87262939,107670.0,107660.0,1.5806]
[1748455594581,1.23340106,107670.0,107660.0,1.5806]
[1748455595078,1.57473345,107670.0,107660.0,1.58072]
[1748455595272,1.01841036,107670.0,107660.0,1.7664269]
[1748455595479,0.61144968,107670.0,107660.0,2.4872269]
[1748455595668,0.52161939,107670.0,107660.0,2.3372269]
[1748455595864,0.47845299,107670.0,107660.0,2.3412269]
[1748455596075,0.2861896,107670.0,107660.0,2.3412269]
[1748455596276,0.2861896,107670.0,107660.0,2.53749029]
[1748455596277,0.2161896,107670.0,107660.0,2.53749029]
[1748455596780,0.2161896,107670.0,107660.0,2.3452269]
[1748455596968,0.3861896,107670.0,107660.0,2.3782269]
[1748455597976,0.43643391,107680.0,107670.0,0.1856896]
[1748455597977,0.00013952,107680.0,107670.0,0.1856896]
[1748455598171,0.00013952,107680.0,107670.0,1.26403937]
[1748455598775,0.00013952,107680.0,107670.0,1.0534896]
[1748455598985,0.03293952,107680.0,107670.0,1.0534896]
[1748455599279,0.00013952,107680.0,107670.0,1.0564896]
[1748455599475,0.18581192,107680.0,107670.0,1.0564896]
[1748455599681,0.18581192,107680.0,107670.0,1.0594896]
[1748455600081,0.21861192,107680.0,107670.0,1.0594896]
[1748455600585,0.00013952,107680.0,107670.0,1.27003937]
[1748455600779,0.00013952,107680.0,107670.0,1.21291137]
[1748455601089,0.00013952,107680.0,107670.0,1.53291137]
[1748455601275,0.0005113,107680.0,107670.0,3.03291137]
[1748455603490,0.0005113,107680.0,107670.0,3.09199463]
[1748455603671,0.0005113,107680.0,107670.0,3.03291137]
[1748455605388,0.0005113,107680.0,107670.0,3.07619065]
[1748455606280,0.1861837,107680.0,107670.0,2.86564088]
[1748455606486,0.1861837,107680.0,107670.0,3.07619065]
[1748455607381,0.97728324,107680.0,107670.0,0.2134541]
[1748455607585,1.54171353,107680.0,107670.0,0.006]
[1748455607778,1.62820744,107680.0,107670.0,0.01872867]
[1748455607981,1.57057715,107680.0,107670.0,0.006]
[1748455608181,1.36002738,107680.0,107670.0,0.01889512]
[1748455608392,1.57057715,107680.0,107670.0,2e-08]
[1748455608591,0.1857069,107660.0,107650.0,0.03561952]
[1748455608889,0.83389825,107660.0,107650.0,0.03561952]
[1748455609082,0.89859825,107660.0,107650.0,1.53561952]
[1748455609284,0.92989825,107660.0,107650.0,1.53561952]
[1748455609488,0.97312943,107660.0,107650.0,1.53561952]
[1748455609681,1.33392943,107660.0,107650.0,1.53561952]
[1748455609881,1.33392943,107660.0,107650.0,1.53573952]
[1748455610198,1.33392943,107660.0,107650.0,1.50303952]
[1748455610493,1.33392943,107660.0,107650.0,1.68876362]
[1748455610789,1.33392943,107660.0,107650.0,1.51303952]
[1748455611693,1.33392943,107660.0,107650.0,1.69876362]
[1748455613184,1.33392943,107660.0,107650.0,1.69376362]
[1748455613401,1.33692943,107660.0,107650.0,1.69376362]
[1748455613599,1.33692943,107660.0,107650.0,1.69098362]
[1748455613981,1.33992943,107660.0,107650.0,1.50025952]
[1748455614690,1.33992943,107660.0,107650.0,1.68598342]
[1748455615092,1.33992943,107660.0,107650.0,1.50025952]
[1748455615395,1.29669825,107660.0,107650.0,1.68598342]
[1748455615587,1.33989849,107660.0,107650.0,1.68598342]
[1748455616097,1.12934872,107660.0,107650.0,1.72648342]
[1748455616397,0.76854872,107660.0,107650.0,1.75858342]
[1748455616600,0.71090714,107660.0,107650.0,1.75858342]
[1748455617291,0.92145691,107660.0,107650.0,1.57285952]
[1748455617497,0.92145691,107660.0,107650.0,1.71648332]
[1748455617983,0.92145691,107660.0,107650.0,1.53075952]
[1748455618181,0.92145691,107660.0,107650.0,1.71648322]
[1748455618396,0.92145691,107660.0,107650.0,1.50025952]
[1748455618593,0.92145691,107660.0,107650.0,1.68598322]
[1748455619496,0.92145691,107660.0,107650.0,1.50025952]
[1748455620902,0.92145691,107660.0,107650.0,1.53085952]
[1748455621292,0.97909849,107660.0,107650.0,1.53085952]
[1748455621791,0.97909849,107660.0,107650.0,1.50025952]
[1748455621994,1.3653169,107660.0,107650.0,0.01299974]
[1748455622196,1.3653169,107660.0,107650.0,0.01309351]
[1748455622395,1.30767532,107660.0,107650.0,0.01309351]
[1748455622595,1.365291,107660.0,107650.0,0.01309351]
[1748455622995,1.365291,107660.0,107650.0,0.01294287]
[1748455623198,1.365291,107660.0,107650.0,0.01306288]
[1748455623500,0.59178495,107660.0,107650.0,0.2187763]
[1748455623701,0.59178495,107660.0,107650.0,0.0945594]
[1748455623899,0.69802863,107660.0,107650.0,0.08175952]
[1748455624102,0.69802863,107660.0,107650.0,0.09450646]
[1748455624794,0.69802863,107660.0,107650.0,0.09449475]
[1748455625501,0.69802863,107660.0,107650.0,0.08175952]
[1748455625804,0.69802863,107660.0,107650.0,0.09449398]
[1748455625990,0.69802863,107660.0,107650.0,0.09449399]
[1748455626197,0.69802863,107660.0,107650.0,0.0944947]
[1748455626498,0.50532258,107660.0,107650.0,0.08175952]
[1748455626698,0.69802863,107660.0,107650.0,0.09449561]
[1748455626995,0.69802863,107660.0,107650.0,0.09449455]
[1748455627303,0.69802863,107660.0,107650.0,0.09448967]
[1748455627500,0.69802863,107660.0,107650.0,0.09449145]
[1748455627703,0.69802863,107660.0,107650.0,0.09448839]
[1748455628095,0.50532258,107660.0,107650.0,0.09448839]
[1748455628414,0.49090231,107660.0,107650.0,1.05098457]
[1748455628701,0.49090231,107660.0,107650.0,1.08398457]
[1748455628892,0.45960231,107660.0,107650.0,1.08398457]
[1748455629091,0.04919541,107660.0,107650.0,1.11398457]
[1748455629295,0.006,107660.0,107650.0,1.32398457]
[1748455629499,0.006,107660.0,107650.0,3.21019012]
[1748455629897,0.002,107660.0,107650.0,3.21019012]
[1748455630092,0.002,107660.0,107650.0,2.99807012]
[1748455630306,0.3568657,107670.0,107660.0,0.1857028]
[1748455630505,0.4368657,107670.0,107660.0,0.8575028]
[1748455631596,0.3904411,107670.0,107660.0,0.8575028]
[1748455631797,0.37004004,107680.0,107670.0,0.1856859]
[1748455632004,0.40134004,107680.0,107670.0,0.9082859]
[1748455632203,0.40136961,107680.0,107670.0,0.9082859]
[1748455632603,0.40136961,107680.0,107670.0,0.8882859]
[1748455632802,0.35494931,107680.0,107670.0,0.8882859]
[1748455633003,0.18958633,107680.0,107670.0,1.14787195]
[1748455633599,0.19158633,107680.0,107670.0,1.14787195]
[1748455634509,0.18958633,107680.0,107670.0,1.14787195]
[1748455634713,0.18758633,107680.0,107670.0,1.14787195]
[1748455635207,0.18758633,107680.0,107670.0,2.64787195]
[1748455636402,0.18758633,107680.0,107670.0,2.70695521]
[1748455636709,0.18758633,107680.0,107670.0,2.64787195]
[1748455637510,0.18758633,107680.0,107670.0,2.70695521]
[1748455639512,0.18758633,107680.0,107670.0,2.64787195]
[1748455639709,0.00190513,107680.0,107670.0,2.64787195]
[1748455639916,0.00190513,107680.0,107670.0,2.92787195]
[1748455640219,0.00190513,107680.0,107670.0,2.98695521]
[1748455640718,0.00190513,107680.0,107670.0,2.92787195]
[1748455641101,0.00190513,107680.0,107670.0,2.93065195]
[1748455641912,0.18757383,107680.0,107670.0,2.98973521]
[1748455642515,0.18757383,107680.0,107670.0,2.93065195]
[1748455643615,0.00190513,107680.0,107670.0,2.93065195]
[1748455643917,0.18757383,107680.0,107670.0,2.93065195]
[1748455645406,0.18757383,107680.0,107670.0,2.7200659]
[1748455645625,0.18757383,107680.0,107670.0,2.93065195]
[1748455645923,0.18757383,107680.0,107670.0,2.7200659]
[1748455646111,0.63815988,107680.0,107670.0,2.02538]
[1748455646414,0.73125988,107680.0,107670.0,2.2111859]
[1748455646621,0.73125988,107680.0,107670.0,2.3811859]
[1748455646832,0.52067383,107680.0,107670.0,2.3811859]
[1748455650825,0.28067383,107680.0,107670.0,2.5411859]
[1748455651024,0.03190513,107680.0,107670.0,2.75177195]
[1748455651214,0.00190513,107680.0,107670.0,2.96177195]
[1748455651618,0.0005113,107680.0,107670.0,3.02085521]
[1748455652721,0.0316113,107680.0,107670.0,3.02085521]
[1748455653530,0.0316113,107680.0,107670.0,3.06419343]
[1748455653920,0.21728,107680.0,107670.0,3.06419343]
[1748455654323,0.21728,107680.0,107670.0,3.02085521]
[1748455654516,0.21728,107680.0,107670.0,3.06419343]
[1748455655631,0.0316113,107680.0,107670.0,3.06419343]
[1748455655833,0.2172799,107680.0,107670.0,3.06419343]
[1748455656022,0.0316113,107680.0,107670.0,3.06419343]
[1748455656220,0.2172799,107680.0,107670.0,3.06419343]
[1748455657030,0.2172817,107680.0,107670.0,3.06419343]
[1748455657429,0.2172817,107680.0,107670.0,3.06425657]
[1748455657629,0.2172817,107680.0,107670.0,3.06311763]
[1748455658444,0.0316113,107680.0,107670.0,3.06311763]
[1748455658631,0.2172816,107680.0,107670.0,3.1340017]
[1748455659423,0.0316113,107680.0,107670.0,3.1340017]
[1748455659834,0.4597713,107680.0,107670.0,3.1340017]
[1748455660438,0.4286713,107680.0,107670.0,3.26613146]
[1748455660632,0.4286713,107680.0,107670.0,3.2227301]
[1748455660937,0.4286713,107680.0,107670.0,3.2227359]
[1748455661320,0.4286713,107680.0,107670.0,3.19934665]
[1748455661321,1e-07,107680.0,107670.0,3.19934665]
[1748455661626,1e-07,107680.0,107670.0,3.2162864]
[1748455661820,1e-07,107680.0,107670.0,3.26166292]
[1748455662026,1e-07,107680.0,107670.0,3.43594921]
[1748455662625,1e-07,107680.0,107670.0,3.43394257]
[1748455662934,1e-07,107680.0,107670.0,3.43694257]
[1748455663529,1e-07,107680.0,107670.0,3.43494257]
[1748455663725,1e-07,107680.0,107670.0,3.43694257]
[1748455663937,1e-07,107680.0,107670.0,3.36296193]
[1748455664535,1e-07,107680.0,107670.0,3.31759205]
[1748455665531,0.0333001,107680.0,107670.0,3.31759205]
[1748455666740,0.0333001,107680.0,107670.0,3.67839205]
[1748455667629,0.00013952,107690.0,107680.0,0.185671]
[1748455667825,0.48619442,107700.0,107690.0,0.1856537]
[1748455668036,0.48619442,107700.0,107690.0,1.60160751]
[1748455668242,0.44288848,107700.0,107690.0,3.10160751]
[1748455668440,0.44288848,107700.0,107690.0,2.99907396]
[1748455668441,0.01508848,107700.0,107690.0,2.99907396]
[1748455668646,0.01508848,107700.0,107690.0,3.14505769]
[1748455668647,0.44312848,107700.0,107690.0,3.14505769]
[1748455669443,0.01508848,107700.0,107690.0,3.23791369]
[1748455669636,0.01508848,107700.0,107690.0,3.24064654]
[1748455669829,0.01508848,107700.0,107690.0,3.18276513]
[1748455670145,0.00139359,107700.0,107690.0,3.18276513]
[1748455670440,0.00139359,107700.0,107690.0,3.18376513]
[1748455670746,0.00139359,107700.0,107690.0,3.24162137]
[1748455671629,0.00139359,107700.0,107690.0,3.24262137]
[1748455671832,0.00139359,107700.0,107690.0,3.34302137]
[1748455672449,0.00139359,107700.0,107690.0,3.34202137]
[1748455672648,0.00139359,107700.0,107690.0,3.28293424]
[1748455672835,0.00139359,107700.0,107690.0,3.19603764]
[1748455673141,0.03279359,107700.0,107690.0,3.19007824]
[1748455674534,0.03279359,107700.0,107690.0,3.10318164]
[1748455674739,0.03279359,107700.0,107690.0,3.16214461]
[1748455675237,0.04681877,107700.0,107690.0,3.16214461]
[1748455677242,0.04681877,107700.0,107690.0,3.14653111]
[1748455677544,0.04681877,107700.0,107690.0,3.17406571]
[1748455677740,0.04681877,107700.0,107690.0,3.14653259]
[1748455678649,0.04681877,107700.0,107690.0,3.10318164]
[1748455679541,0.04681877,107700.0,107690.0,3.14653601]
[1748455679849,0.04681877,107700.0,107690.0,3.10318164]
[1748455680455,0.07731877,107700.0,107690.0,3.10318164]
[1748455680742,0.07731877,107700.0,107690.0,3.19007824]
[1748455682250,0.07731877,107700.0,107690.0,3.26096231]
[1748455683951,0.07731877,107700.0,107690.0,3.24289335]
[1748455686953,0.07731877,107700.0,107690.0,3.14249335]
[1748455687453,0.07731877,107700.0,107690.0,3.18778083]
[1748455687648,0.07731877,107700.0,107690.0,2.95007061]
[1748455687853,0.07731877,107700.0,107690.0,3.14249335]
[1748455688451,0.07731877,107700.0,107690.0,3.18778796]
[1748455688954,0.07592518,107700.0,107690.0,3.18778796]
[1748455689155,0.10912518,107700.0,107690.0,3.18778796]
[1748455689364,0.10912518,107700.0,107690.0,3.18779653]
[1748455689544,0.10912518,107700.0,107690.0,3.1878055]
[1748455689950,0.10912518,107700.0,107690.0,3.07160928]
[1748455690555,0.10912518,107700.0,107690.0,3.01375304]
[1748455692949,0.04542518,107700.0,107690.0,3.01375304]
[1748455693154,0.42721952,107710.0,107700.0,0.1856363]
[1748455693351,0.45953952,107710.0,107700.0,1.45170609]
[1748455693552,0.45953952,107710.0,107700.0,1.56605231]
[1748455693858,0.45953952,107710.0,107700.0,3.06605231]
[1748455694162,0.49273952,107710.0,107700.0,3.06605231]
[1748455694457,0.06553952,107710.0,107700.0,3.06605231]
[1748455694668,0.45945952,107710.0,107700.0,3.30382487]
[1748455694958,2e-08,107710.0,107700.0,3.1750282]
[1748455695158,0.11003723,107720.0,107700.0,3.1750282]
[1748455695159,0.56931723,107720.0,107710.0,0.1846191]
[1748455695356,0.06569322,107720.0,107710.0,1.61161547]
[1748455695554,0.49273322,107720.0,107710.0,1.68686714]
[1748455696261,0.49273322,107720.0,107710.0,1.73222042]
[1748455696563,0.49273322,107720.0,107710.0,1.73322834]
[1748455696752,0.13429921,107730.0,107720.0,0.1856018]
[1748455697059,0.10235268,107740.0,107730.0,0.1855846]
[1748455697360,0.46155299,107740.0,107730.0,1.47371395]
[1748455697561,0.46155299,107740.0,107730.0,1.62371395]
[1748455698357,0.46155299,107740.0,107730.0,1.62649395]
[1748455699257,0.46255299,107740.0,107730.0,3.12649395]
[1748455699459,0.46455299,107740.0,107730.0,3.06855629]
[1748455699964,0.52515299,107740.0,107730.0,3.06855629]
[1748455700458,0.45973299,107740.0,107730.0,3.05659034]
[1748455700659,0.45973299,107740.0,107730.0,2.99758521]
[1748455700855,0.03289299,107740.0,107730.0,3.05589465]
[1748455701055,0.45734,107740.0,107730.0,3.05589465]
[1748455701255,0.45734,107740.0,107730.0,3.12681035]
[1748455701453,0.4573,107740.0,107730.0,3.05589465]
[1748455701864,0.4573,107740.0,107730.0,3.05689465]
[1748455702066,0.4573,107740.0,107730.0,3.05789465]
[1748455703261,0.4573,107740.0,107730.0,3.11684245]
[1748455704565,0.4573,107740.0,107730.0,2.85890479]
[1748455704761,0.4901,107740.0,107730.0,2.85890479]
[1748455705665,0.6756674,107740.0,107730.0,2.85890479]
[1748455705966,0.4901,107740.0,107730.0,2.85890479]
[1748455707170,0.6756674,107740.0,107730.0,2.85890479]
[1748455707370,0.4901,107740.0,107730.0,2.85890479]
[1748455707867,0.48966,107740.0,107730.0,2.85890479]
[1748455708070,0.45686,107740.0,107730.0,2.86890479]
[1748455708859,0.0305,107740.0,107730.0,2.86881863]
[1748455709062,0.0305,107740.0,107730.0,3.06124137]
[1748455709364,0.4569,107740.0,107730.0,3.06124137]
[1748455709561,0.4569,107740.0,107730.0,3.23124137]
[1748455709863,0.00013952,107750.0,107740.0,0.1855674]
[1748455710069,0.64484972,107750.0,107740.0,1.45289265]
[1748455710472,0.21848972,107750.0,107740.0,2.65289265]
[1748455710771,0.45925952,107750.0,107740.0,2.98289265]
[1748455710977,0.46025952,107750.0,107740.0,2.66289265]
[1748455711359,0.46017952,107750.0,107740.0,2.66289265]
[1748455711672,0.46017952,107750.0,107740.0,3.01289265]
[1748455711869,0.46013952,107750.0,107740.0,3.01289265]
[1748455712371,0.00113952,107750.0,107740.0,3.01289265]
[1748455712959,0.00113952,107750.0,107740.0,2.9695865]
[1748455713166,0.00013952,107750.0,107740.0,3.01287532]
[1748455713569,0.03183952,107750.0,107740.0,3.01287532]
[1748455713767,0.03183952,107750.0,107740.0,3.01387532]
[1748455715466,0.03183952,107750.0,107740.0,1.51387532]
[1748455715661,0.00013952,107750.0,107740.0,1.51387532]
[1748455715976,0.00013952,107750.0,107740.0,3.07181298]
[1748455716275,0.00013952,107750.0,107740.0,2.87381298]
[1748455716464,0.03313952,107750.0,107740.0,2.87381298]
[1748455716770,0.03313952,107750.0,107740.0,3.01381298]
[1748455717273,0.00013952,107750.0,107740.0,3.01381298]
[1748455717473,0.00013952,107750.0,107740.0,3.01381242]
[1748455717670,0.00013952,107750.0,107740.0,3.01481242]
[1748455718769,0.00013952,107750.0,107740.0,2.95591606]
[1748455719173,0.00013952,107750.0,107740.0,3.05579606]
[1748455719369,0.00013952,107750.0,107740.0,3.12671176]
[1748455719571,0.0331,107770.0,107760.0,0.185533]
[1748455719867,0.49,107770.0,107760.0,1.98085491]
[1748455720070,0.49,107770.0,107760.0,1.85133217]
[1748455720263,0.0311,107770.0,107760.0,3.39462366]
[1748455720470,0.04497221,107770.0,107760.0,3.39462366]
[1748455720680,0.04697221,107770.0,107760.0,3.35133217]
[1748455720869,0.04697221,107770.0,107760.0,3.29245574]
[1748455721269,0.04697221,107770.0,107760.0,3.29523574]
[1748455721869,0.04697221,107770.0,107760.0,3.48765848]
[1748455722270,0.04597221,107770.0,107760.0,3.48765848]
[1748455723274,0.04497221,107770.0,107760.0,3.53094997]
[1748455723576,0.04497221,107770.0,107760.0,3.53194997]
[1748455724773,0.04497221,107770.0,107760.0,3.5908264]
[1748455725875,0.04497221,107770.0,107760.0,3.59083614]
[1748455726679,0.00139245,107780.0,107770.0,0.1855158]
[1748455726977,0.0326,107780.0,107770.0,1.45613854]
[1748455727185,0.4907,107790.0,107780.0,0.1854985]
[1748455727370,0.4907,107790.0,107780.0,1.20302124]
[1748455728175,0.0649,107790.0,107780.0,1.20302124]
[1748455728376,0.49066,107790.0,107780.0,1.20302124]
[1748455728583,0.49066,107790.0,107780.0,1.20202124]
[1748455728979,0.07870231,107790.0,107780.0,1.20102124]
[1748455729173,0.07870231,107790.0,107780.0,1.37102124]
[1748455729373,0.50438231,107790.0,107780.0,1.05102124]
[1748455729583,0.50534231,107790.0,107780.0,1.15102124]
[1748455729884,0.50634231,107790.0,107780.0,1.15102124]
[1748455730084,0.50634231,107790.0,107780.0,1.20989767]
[1748455730487,0.69182361,107790.0,107780.0,1.20989767]
[1748455731382,0.69182361,107790.0,107780.0,1.15102124]
[1748455731979,0.98182361,107790.0,107780.0,0.9585985]
[1748455732480,0.98182361,107790.0,107780.0,1.15102124]
[1748455732875,0.98182361,107790.0,107780.0,2.65102124]
[1748455733691,0.75182361,107790.0,107780.0,2.65102124]
[1748455733875,0.75182361,107790.0,107780.0,2.65139302]
[1748455734386,0.69182361,107790.0,107780.0,2.65139302]
[1748455734985,0.50634231,107790.0,107780.0,2.65139302]
[1748455735288,0.69182361,107790.0,107780.0,2.65139302]
[1748455739389,0.69182361,107790.0,107780.0,2.69464366]
[1748455741094,0.69150361,107790.0,107780.0,2.69464366]
[1748455742686,0.69150361,107790.0,107780.0,2.65139302]
[1748455742989,0.69150361,107790.0,107780.0,2.69467774]
[1748455743187,0.69150361,107790.0,107780.0,2.69745774]
[1748455743387,0.69150361,107790.0,107780.0,2.56390222]
[1748455743791,0.69150361,107790.0,107780.0,2.75632496]
[1748455744096,0.08070231,107790.0,107780.0,2.75632496]
[1748455744290,0.50594231,107790.0,107780.0,2.75632496]
[1748455744599,0.69593916,107790.0,107780.0,2.75632496]
[1748455744895,0.51045786,107790.0,107780.0,2.75632496]
[1748455745278,0.08521786,107790.0,107780.0,2.75632496]
[1748455745484,0.46479555,107790.0,107780.0,2.75632496]
[1748455745682,0.46479555,107790.0,107780.0,2.81403792]
[1748455746290,0.46479555,107790.0,107780.0,3.05403792]
[1748455746997,0.46379555,107790.0,107780.0,3.05503792]
[1748455747382,0.46367555,107790.0,107780.0,3.05503792]
[1748455747583,0.00451555,107790.0,107780.0,3.05603792]
[1748455747788,0.00451555,107790.0,107780.0,3.0127532]
[1748455748296,0.00451555,107790.0,107780.0,3.0996498]
[1748455748993,0.42999555,107790.0,107780.0,3.0996498]
[1748455749392,0.42999555,107790.0,107780.0,3.04078258]
[1748455750197,0.00451555,107790.0,107780.0,3.04078258]
[1748455750600,0.00451555,107790.0,107780.0,3.30384599]
[1748455750805,0.00451555,107790.0,107780.0,3.29138132]
[1748455751003,0.00451555,107790.0,107780.0,3.02831791]
[1748455751811,0.00451555,107790.0,107780.0,2.68831791]
[1748455752109,0.00451555,107790.0,107780.0,2.80831791]
[1748455752493,0.03661555,107790.0,107780.0,2.80831791]
[1748455753105,0.03661555,107790.0,107780.0,2.92435951]
[1748455753301,0.00451555,107790.0,107780.0,2.80335951]
[1748455753602,0.00451555,107790.0,107780.0,3.02731791]
[1748455753905,0.00451555,107790.0,107780.0,3.05646291]
[1748455754807,0.00451555,107790.0,107780.0,3.12724832]
[1748455755006,0.00451555,107790.0,107780.0,3.12624832]
[1748455755216,0.00451555,107790.0,107780.0,3.12724832]
[1748455755504,0.00451555,107790.0,107780.0,3.05646291]
[1748455755712,0.00451555,107790.0,107780.0,3.12724687]
[1748455756206,0.00451555,107790.0,107780.0,3.05646291]
[1748455756908,0.00451555,107790.0,107780.0,3.05846291]
[1748455757107,0.00451555,107790.0,107780.0,3.41926291]
[1748455759913,0.00451555,107790.0,107780.0,3.41926761]
[1748455762805,0.00451555,107790.0,107780.0,3.22684487]
[1748455763005,0.00451555,107790.0,107780.0,3.41926761]
[1748455766215,0.03691555,107790.0,107780.0,3.41926761]
[1748455767604,0.03691555,107790.0,107780.0,3.22684487]